Cogmind - Beta 14 @@@ ROGUE MODE // 2024.11.07 @ 22:51:04 Player: MrMistersen Result: Destroyed by G-34 Mercenary with Small Laser Performance ------------- Evolutions (0) 0 Regions Visited (2) 400 Robots Destroyed (17) 85 Value Destroyed (265) 265 Prototype IDs (0) 0 Alien Tech Used (0) 0 Bonus (0) 0 TOTAL SCORE: 750 Bonus ------- None Cogmind --------- Core Integrity 0/250 Matter 282/300 Energy 100/100 System Corruption 0% Temperature Cool (6) Movement Flying (440) Ox5 Location -10/Mines Parts ------- > --- POWER (1) -------- (None) > --- PROPULSION (2) --- Flight Unit > --- UTILITY (2) ------ Large Storage Unit > --- WEAPON (2) ------- Light Assault Rifle Light Assault Rifle > --- INVENTORY (15) --- Light Ion Engine Light Ion Engine Light Ion Engine Flight Unit Flight Unit Light Assault Rifle Light Assault Rifle Light Assault Rifle Light Assault Rifle Mining Laser Mining Laser Peak State ------------ > --- POWER ------------ Light Ion Engine > --- PROPULSION ------- Aluminum Leg Aluminum Leg > --- UTILITY ---------- Large Storage Unit Compact Matter Pod > --- WEAPON ----------- Light Assault Rifle Light Assault Rifle > --- INVENTORY -------- Light Ion Engine Mining Laser Mining Laser [Rating: 9] Favorites ----------- Power Light Ion Engine Engine Light Ion Engine Propulsion Aluminum Leg Leg Aluminum Leg Flight Unit Flight Unit Utility Large Storage Unit Storage Large Storage Unit Weapon Light Assault Rifle Energy Gun EM Pulse Gun Ballistic Gun Light Assault Rifle Build | -11 -10 -10 ------- Run | Yrd Mat Min Slots Evolved . | . . . Power . | . . . Propulsion . | . . . Utility . | . . . Weapon . | . . . Parts Attached 16 | 6 1 9 Power 3 | 1 . 2 Engine 3 | 1 . 2 Core . | . . . Reactor . | . . . Propulsion 5 | 2 . 3 Treads . | . . . Leg 2 | 2 . . Wheel . | . . . Hover . | . . . Flight 3 | . . 3 Utility 3 | 1 1 1 Device . | . . . Storage 3 | 1 1 1 Processor . | . . . Hackware . | . . . Protection . | . . . Artifact . | . . . Weapon 5 | 2 . 3 Energy Gun 1 | 1 . . Energy Cannon . | . . . Ballistic Gun 4 | 1 . 3 Ballistic Cannon . | . . . Launcher . | . . . Special Weapon . | . . . Impact Weapon . | . . . Slashing Weapon . | . . . Piercing Weapon . | . . . Special Melee Weapon . | . . . Unidentified Prototypes . | . . . Parts Lost 8 | . . 8 Power 2 | . . 2 Propulsion 2 | . . 2 Utility 1 | . . 1 Weapon 3 | . . 3 Highest Loss Streak 4 | . . 4 To Critical Strikes . | . . . Average Slot Usage (%) 86 | . 85 86 Engine 13 | . 14 13 Leg 17 | . 28 15 Flight 9 | . . 11 Storage 17 | . 14 18 Energy Gun 4 | . 14 2 Ballistic Gun 21 | . 14 23 Peak Build Rating 9 | 6 7 9 Average Rating 6 | 3 6 6 On Entrance 4 | . 6 6 Naked Turns . | . . . Heaviest Build 26 | 11 26 26 Greatest Support 20 | 20 20 20 Greatest Overweight (x) 6 | 1 1 6 Average Overweight (x) 1 | . . 1 Largest Inventory Capacity 15 | 8 15 15 Average Capacity 14 | 7 14 15 Most Carried 11 | 4 3 11 Average Carried 4 | 1 1 5 Final Capacity 15 | 8 15 15 Final Carried 11 | 1 3 11 Class Distribution -------------------- 75% | Mutant 24% | Scavenger-Mutant Dominant Class ---------------- Mutant | -10/Materials Mutant | -10/Mines Resources | -11 -10 -10 ----------- Run | Yrd Mat Min Matter Collected 497 | 68 . 429 Remotely . | . . . Salvage Created 360 | . . 360 Parts 31 | . . 31 Haulers Intercepted . | . . . Recyclers Shooed . | . . . Parts Field Recycled . | . . . Retrieved Matter . | . . . Parts Self-Destructed . | . . . Prevented . | . . . Kills | -11 -10 -10 ------- Run | Yrd Mat Min Combat Hostiles Destroyed 16 | . . 16 Guns 15 | . . 15 AOE 1 | . . 1 Classes Destroyed 3 | . . 3 Tunneler 1 | . . 1 Swarmer 13 | . . 13 Grunt 3 | . . 3 Best Kill Streak 4 | . . 4 Combat Bots Only 3 | . . 3 Max Kills in Single Turn 2 | . . 2 Gunslinging 1 | . . 1 Exploded 1 | . . 1 Melee . | . . . Uniques/NPCs Destroyed . | . . . Combat | -11 -10 -10 -------- Run | Yrd Mat Min Hostile Shots Fired 142 | . . 142 Missed 43 | . . 43 Damage Taken 966 | . . 966 Core 259 | . . 259 Absorbed by Shields . | . . . Core Remaining (%) 100 | 100 . . Volleys Fired 61 | . . 61 Largest 2 | . . 2 Hottest 60 | . . 60 Shots Fired 111 | . . 111 Gun 111 | . . 111 Cannon . | . . . Launcher . | . . . Special . | . . . Kinetic 101 | . . 101 Thermal . | . . . Explosive . | . . . Electromagnetic 10 | . . 10 Robot Hit Streak 11 | . . 11 Robot Miss Streak 4 | . . 4 Penetration Max . | . . . Secondary Targets 4 | . . 4 Max Gunslinging Chain 1 | . . 1 Shots Hit Robots 73 | . . 73 Core Hits 30 | . . 30 Critical Kills 1 | . . 1 Critical Parts Destroyed . | . . . Critical Strikes 1 | . . 1 Destroy 1 | . . 1 Melee Attacks . | . . . Impact . | . . . Slashing . | . . . Piercing . | . . . Sneak Attacks . | . . . Combat Hostiles . | . . . Follow-up Attacks . | . . . Damage Inflicted 650 | . . 650 Guns 630 | . . 630 Cannons . | . . . Explosions 20 | . . 20 Melee . | . . . Ramming . | . . . Kinetic 554 | . . 554 Thermal 20 | . . 20 Explosive . | . . . Electromagnetic 76 | . . 76 Impact . | . . . Slashing . | . . . Piercing . | . . . Highest Corruption . | . . . Average Corruption . | . . . Corruption Purged . | . . . Corruption Blocked . | . . . Overload Shots . | . . . Overflow Damage 17 | . . 17 Projectiles . | . . . Explosions 17 | . . 17 Melee . | . . . Knockbacks . | . . . Impact . | . . . Kinetic . | . . . Secondary . | . . . Self-Inflicted Damage 27 | . . 27 Shots 1 | . . 1 Rammed . | . . . Targets Rammed . | . . . Kicked . | . . . Crushed . | . . . Highest Temperature 40 | . . 40 Average Temperature 11 | . . 11 Received Heat Transfer 216 | . . 216 Siege Activations . | . . . Robots Corrupted . | . . . Combat Hostiles . | . . . Parts Fried . | . . . Impact Corruptions . | . . . Robots Melted . | . . . Combat Hostiles . | . . . Parts Melted . | . . . Heat Transferred . | . . . Parts Sabotaged . | . . . Parts Stolen . | . . . Parts Stripped . | . . . Power Chain Reactions 1 | . . 1 Alert | -11 -10 -10 ------- Run | Yrd Mat Min Peak Influence 200 | . 45 200 Initial 17 | . . 17 Average 79 | . 14 101 Maximum Alert Level 1 | . . 1 Low Security (%) 99 | 100 100 99 Level 1 . | . . . Level 2 . | . . . Level 3 . | . . . Level 4 . | . . . Level 5 . | . . . High Security . | . . . Max Security . | . . . Squads Dispatched 1 | . 1 . Investigation . | . . . Extermination . | . . . Reinforcement 1 | . 1 . Assault . | . . . Garrison . | . . . Intercept . | . . . Searches Triggered . | . . . Construction Impeded . | . . . Haulers Reinforced . | . . . Active Scanning Responses . | . . . Cargo Convoy Interrupts . | . . . Stealth | -11 -10 -10 --------- Run | Yrd Mat Min Distress Signals . | . . . Communications Jammed . | . . . Distress Signals . | . . . Times Spotted 25 | . 4 21 Peak Tracking Total 3 | . 2 3 Tactical Retreats 1 | . . 1 Traps | -11 -10 -10 ------- Run | Yrd Mat Min Traps Triggered . | . . . Indirectly . | . . . Trap Hack Attempts . | . . . Triggered . | . . . Disarmed . | . . . Reprogrammed . | . . . Reused . | . . . Traps Extracted . | . . . Installed . | . . . Triggered . | . . . Machines | -11 -10 -10 ---------- Run | Yrd Mat Min Machines Disabled . | . . . Max in Single Turn . | . . . Machines Repaired . | . . . Machines Dismantled . | . . . Machines Sabotaged . | . . . Overloaded Fab Kills . | . . . Hacking | -11 -10 -10 --------- Run | Yrd Mat Min Machines Accessed . | . . . Terminals . | . . . Fabricators . | . . . Repair Stations . | . . . Recycling Units . | . . . Scanalyzers . | . . . Garrison Access . | . . . Total Hacks . | . . . Successful . | . . . Failed . | . . . Catastrophic . | . . . Database Lockouts . | . . . Manual . | . . . Terminals . | . . . Fabricators . | . . . Repair Stations . | . . . Recycling Units . | . . . Scanalyzers . | . . . Garrison Access . | . . . Terminal Hacks . | . . . Fabricator Hacks . | . . . Repair Station Hacks . | . . . Recycling Unit Hacks . | . . . Scanalyzer . | . . . Garrison Access Hacks . | . . . Unauthorized Hacks . | . . . Terminals . | . . . Fabricators . | . . . Repair Stations . | . . . Recycling Units . | . . . Scanalyzers . | . . . Garrison Access . | . . . Data Cores Recovered . | . . . Used . | . . . Hacking Detections . | . . . Full Trace Events . | . . . Feedback Events . | . . . Feedback Blocked . | . . . Robot Schematics Acquired . | . . . Robots Built . | . . . Authchips . | . . . Time . | . . . Total Robot Build Rating . | . . . Part Schematics Acquired . | . . . Parts Built . | . . . Authchips . | . . . Time . | . . . Total Part Build Rating . | . . . Parts Repaired . | . . . Time . | . . . Parts Recycled . | . . . Recycled Matter . | . . . Retrieved Matter . | . . . Retrieved Components . | . . . Parts Scanalyzed . | . . . Part Schematics Acquired . | . . . Parts Damaged . | . . . Bothacking | -11 -10 -10 ------------ Run | Yrd Mat Min Used RIF Installer . | . . . Robots Hacked . | . . . Non-combat . | . . . Combat . | . . . Robot Hacks Applied . | . . . Relay Couplers Released . | . . . Fabnet Peak Effective % . | . . . Robots Rewired . | . . . Allies Hacked . | . . . Hacks Repelled . | . . . Allies | -11 -10 -10 -------- Run | Yrd Mat Min Total Allies . | . . . Largest Group . | . . . Highest-Rated Group . | . . . Highest-Rated Ally . | . . . Total Orders . | . . . Ally Attacks . | . . . Total Damage . | . . . Kills . | . . . Allies Corrupted . | . . . Allies Melted . | . . . Intel | -11 -10 -10 ------- Run | Yrd Mat Min Robot Analysis Total . | . . . Derelict Logs Recovered 1 | . . 1 Drone Launches . | . . . Drone Recoveries . | . . . Exploration | -11 -10 -10 ------------- Run | Yrd Mat Min Turns Passed 978 | 49 184 745 Spaces Moved 384 | 33 97 254 Core 13 | 13 . . Treads . | . . . Legs 287 | 20 97 170 Wheels . | . . . Hover . | . . . Flight 84 | . . 84 Fastest Speed 50 | 50 120 190 Average Speed 202 | 110 186 220 Slowest Speed 520 | 120 190 520 Overloaded Moves . | . . . Propulsion Burnouts . | . . . Robots Hopped . | . . . Cave-ins Triggered . | . . . Exploration Rate (%) 24 | 3 22 49 Regions Visited 2 Branch Regions 1 Pre-discovered Areas . | . . . Known Exits Taken . | . . . Unknown Exits Taken 2 | 1 1 . Scrap Searched . | . . . Spaces Dug . | . . . Terrain Destroyed 6 | . . 6 Melee . | . . . Projectile . | . . . AOE 6 | . . 6 Terrain Rammed . | . . . Walls Destroyed . | . . . Machines Disabled . | . . . Actions | -11 -10 -10 --------- Run | Yrd Mat Min Total 495 | 45 101 349 Wait 3 | . . 3 Move 382 | 32 96 254 Hop . | . . . Pick Up 28 | 7 3 18 Fast Attach . | . . . Attach 14 | 6 1 7 Detach . | . . . Swap 2 | . . 2 Drop 5 | . 1 4 Fire 61 | . . 61 Melee . | . . . Ram . | . . . Kick . | . . . Crush . | . . . Escape Stasis . | . . . Rewire . | . . . Trap . | . . . Miscellaneous . | . . . Route ------- -11/Scrapyard -10/Materials -10/Mines (discovered 1 exit: [*Mat]) History --------- Turn | Location | Event 13 | -11/Scrapyard | Discovered new exit (range 15) 50 | -11/Scrapyard | Entered Materials 86 | -10/Materials | Discovered new exit (range 10) 234 | -10/Materials | Entered Mines 248 | -10/Mines | Learned Materials garrison access intel 307 | -10/Mines | Build established: Mutant 386 | -10/Mines | Discovered new exit (range 10) 710 | -10/Mines | Core integrity fell below 50% 760 | -10/Mines | Lost 4 parts (1p1u2w) 963 | -10/Mines | Core integrity fell below 20% 979 | -10/Mines | Destroyed by G-34 Mercenary with Small Laser Last Messages --------------- 00768_ Acquired 13 matter. 00865_ S-10 Pest destroyed. 00865_ Flight Unit destroyed. 00873_ S-10 Pest destroyed. 00873_ Switching to secondary target: S-10 Pest. 00876_ S-10 Pest destroyed. 00879_ Acquired 15 matter. 00885_ Acquired Lgt. Assault Rifle. 00889_ Acquired Lgt. Ion Engine. 00892_ Acquired Lgt. Assault Rifle. 00896_ Acquired 9 matter. 00902_ Acquired Lgt. Ion Engine. 00936_ S-10 Pest destroyed. 00936_ Switching to secondary target: S-10 Pest. 00937_ K-01 Serf collects debris. 00938_ S-10 Pest suffers critical hit (Destroy). 00938_ S-10 Pest destroyed. 00962_ Flight Unit destroyed. 00965_ Lgt. Ion Engine destroyed. 00975_ G-47 Trooper destroyed. Map ----- +----------------------------------------------------+ | ??????????????????????# ?????## # ! ![ | | ??????????????????????????????## # ! ! ######## | | ???????????????????????????????# # ! ! ##????? | | ???????????????????????????????# # !!! #????? | | ??????????????????????????????? # #????? | | ??????????????????????????? ? ## ##????? | | ??????????????????????# ?? ####### ###?????? | | ??????????????????????# ?# #?????## ##???????? | | ??????????????????????# ?# #??????#########????? | | ??????????????????????# ## #?????###### ##???? | | ??????????????????????# #?????# ####? | | ??????????????????????# #?????# % ## | | ??????????????????????# #?????# ### * =# | | ??????????????????????# ##????#? #?### ** | | ??????????????????????# ###### ????## %## | | ??????????????????????# ???????## #? | | ??????????????????????# ??????????## #? | | ???????????????????????# #???????????## ## | | ???????????????????????# #????????#### # | | ????????????????????????# #???????## | | ????????????????????????# ######### | | ????????????????????????# | | ????????????????????????# ## % % | | ??????????????? ???????# ### ############# | | ???????????????""""?????# #?# ##???????????## | | ???????????????"""" =####@ ## #?????????????# | | ???????????????""""*[%= g # #?????????????## | | ????????????????####% *s # #??????????????## | | ???????????????????########## ##????????????????# | | ????????????????????????????###??????????????????? | | ?????????????????????????????????????????????????? | | ?????????????????????????????????????????????????? | | ?????????????????????????????????????????????????? | | | | | | | | | | | | | | | | | | | | | | | | | | | | | | | | | | | +----------------------------------------------------+ Best States ------------- Heat Dissipation 25 Energy Generation 10 Energy Capacity 125 Matter Stores 450 Matter Capacity 450 Sight Range 16 Terrain Scan Density 10 Evasion (%) 50 Item Schematics ----------------- None Robot Schematics ------------------ None Fabricated ------------ Nothing Alien Tech Used ----------------- None Achievements -------------- None Challenges ------------ None Game ------ Seed LayeredPortableBooster Manual? 0 Play Time 00:14:58 Cumulative 5.9 hours Start 2024.11.07 @ 22:05:58 End 2024.11.07 @ 22:51:04 Sessions 1 Manual Loads 0 Difficulty Rogue Special Mode None Game No. 8 Rogue 8 Adventurer 0 Explorer 0 Win Type - Total 0 Types 0/0/0/0/0/0/0/0/0 Lore% 4 Gallery% 10 Achievement% 9 Wizard Run 0 Options --------- Layout 1 ASCII 0 Keyboard 0 Movement Mouse Keybinds 0 Fullscreen 2 Font 24/Proggy Map View 50x35 Zoom Use 0% Tactical HUD 1 Map Filters NONE Filters NONE Steam 1 RUN: 4dee88af-e915-4d33-832f-8231eaef70b7